bitfinex/quotes_BTCUSD_20240605
["timestamp","ask_amount","ask_price","bid_price","bid_amount"]
[1717581019547,0.233246,70896.0,70895.0,2.68821847]
[1717581019958,0.000946,70896.0,70895.0,2.81503611]
[1717581020167,0.07317424,70896.0,70895.0,2.81503611]
[1717581020389,0.07317424,70896.0,70895.0,2.68821847]
[1717581020796,0.07317424,70896.0,70895.0,2.81503611]
[1717581021420,0.07317424,70896.0,70895.0,2.68821847]
[1717581022115,0.25056888,70896.0,70895.0,2.40611147]
[1717581022318,0.40296888,70896.0,70895.0,2.40611147]
[1717581025218,0.40296888,70896.0,70895.0,2.12400447]
[1717581030279,0.40296888,70896.0,70895.0,1.9475827]
[1717581030669,0.40296888,70896.0,70895.0,1.84189747]
[1717581031296,0.61365495,70896.0,70895.0,1.84189747]
[1717581031911,0.40296888,70896.0,70895.0,2.12400447]
[1717581032110,0.41719399,70896.0,70895.0,2.12400447]
[1717581032295,0.40296888,70896.0,70895.0,2.12400447]
[1717581032490,0.62788006,70896.0,70895.0,2.12400447]
[1717581032857,0.41719399,70896.0,70895.0,2.12400447]
[1717581033179,0.40296888,70896.0,70895.0,2.12400447]
[1717581033399,0.41717695,70896.0,70895.0,2.12400447]
[1717581036590,0.41717695,70896.0,70895.0,2.22968403]
[1717581036890,0.41717695,70896.0,70895.0,2.12400447]
[1717581038965,0.62786302,70896.0,70895.0,2.12400447]
[1717581040805,0.41717695,70896.0,70895.0,2.12400447]
[1717581041384,0.41717695,70896.0,70895.0,2.20854425]
[1717581041755,0.41717695,70896.0,70895.0,2.12400447]
[1717581041952,0.41656355,70896.0,70895.0,2.12400447]
[1717581042457,0.41656355,70896.0,70895.0,2.20854268]
[1717581045501,0.42724962,70896.0,70895.0,2.20854268]
[1717581046357,0.41656355,70896.0,70895.0,2.20854268]
[1717581046819,0.41656355,70896.0,70895.0,2.20854041]
[1717581046999,0.41656355,70896.0,70895.0,0.79854041]
[1717581049320,0.41656355,70896.0,70895.0,0.71400447]
[1717581049917,0.41656355,70896.0,70895.0,0.79854128]
[1717581050318,0.41656355,70896.0,70895.0,0.71400447]
[1717581054075,0.26416355,70896.0,70895.0,0.71400447]
[1717581056336,0.08676891,70896.0,70895.0,0.86097439]
[1717581056534,0.08676891,70896.0,70895.0,0.75530447]
[1717581056737,0.07256084,70896.0,70895.0,0.71400447]
[1717581057539,0.07256084,70896.0,70895.0,0.81968878]
[1717581058572,0.08457289,70896.0,70895.0,0.81968878]
[1717581059292,0.08457289,70896.0,70895.0,0.71400447]
[1717581060141,0.08457289,70896.0,70895.0,0.81968878]
[1717581060345,0.08457289,70896.0,70895.0,0.71400447]
[1717581060546,0.09525896,70896.0,70895.0,0.71400447]
[1717581060746,0.08457289,70896.0,70895.0,0.71400447]
[1717581061767,0.09525896,70896.0,70895.0,0.71400447]
[1717581062000,0.29525896,70896.0,70895.0,0.71400447]
[1717581062692,0.08457289,70896.0,70895.0,0.99611147]
[1717581062916,0.08457289,70896.0,70895.0,1.10179578]
[1717581066495,0.08457289,70896.0,70895.0,0.99611147]
[1717581070269,0.08457289,70896.0,70895.0,0.71400447]
[1717581070475,0.24347289,70896.0,70895.0,0.71400447]
[1717581072452,0.32117289,70896.0,70895.0,0.71400447]
[1717581073199,0.53185896,70896.0,70895.0,0.71400447]
[1717581073408,0.32117289,70896.0,70895.0,0.71400447]
[1717581075427,0.32117289,70896.0,70895.0,0.81976298]
[1717581075630,0.32117289,70896.0,70895.0,0.71400447]
[1717581075832,0.32117289,70896.0,70895.0,0.81976699]
[1717581076245,0.33185896,70896.0,70895.0,0.81976699]
[1717581076448,0.32117289,70896.0,70895.0,0.81976699]
[1717581076875,0.53185896,70896.0,70895.0,0.81976699]
[1717581077077,0.32117289,70896.0,70895.0,0.81976699]
[1717581077492,0.33185896,70896.0,70895.0,0.81976699]
[1717581077694,0.53185896,70896.0,70895.0,0.81976699]
[1717581078245,0.53185896,70896.0,70895.0,0.71400447]
[1717581079478,0.32117289,70896.0,70895.0,0.71400447]
[1717581079687,0.33185896,70896.0,70895.0,0.71400447]
[1717581079895,0.53185896,70896.0,70895.0,0.71400447]
[1717581080073,0.32117289,70896.0,70895.0,0.71400447]
[1717581080725,0.32117289,70896.0,70895.0,0.81976699]
[1717581082392,0.32117289,70896.0,70895.0,0.71400447]
[1717581082671,0.08457289,70896.0,70895.0,0.71400447]
[1717581083969,0.08457289,70896.0,70895.0,1.15781147]
[1717581084178,0.01234465,70896.0,70895.0,1.48121847]
[1717581084398,0.0003326,70896.0,70895.0,1.60810769]
[1717581084602,0.0003326,70896.0,70895.0,1.48121847]
[1717581084814,0.0003326,70896.0,70895.0,1.47721847]
[1717581085285,0.0003326,70896.0,70895.0,1.66242508]
[1717581085753,0.0003326,70896.0,70895.0,1.66442508]
[1717581085984,0.0003326,70896.0,70895.0,1.48121847]
[1717581086203,0.0003326,70896.0,70895.0,1.48721847]
[1717581086623,0.0003326,70896.0,70895.0,1.47121847]
[1717581087042,0.0003326,70896.0,70895.0,1.48121847]
[1717581087901,0.008,70899.0,70898.0,0.331047]
[1717581088102,0.008,70899.0,70898.0,1.16265593]
[1717581088254,0.008,70899.0,70898.0,1.44475093]
[1717581088875,0.008,70899.0,70898.0,1.57144761]
[1717581089194,0.008,70899.0,70898.0,1.44475093]
[1717581089805,0.008,70899.0,70898.0,1.45075093]
[1717581090098,0.008,70899.0,70898.0,1.49605093]
[1717581091734,0.0020774,70899.0,70898.0,1.65145093]
[1717581092632,0.00949301,70900.0,70899.0,0.987318]
[1717581092835,0.00949301,70900.0,70899.0,1.15473693]
[1717581093037,0.00949301,70900.0,70899.0,1.57611995]
[1717581093242,0.00949301,70900.0,70899.0,1.44943693]
[1717581093423,0.00949301,70900.0,70899.0,1.57606181]
[1717581093637,0.00086,70901.0,70900.0,1.228604]
[1717581093842,0.00086,70901.0,70900.0,1.65912293]
[1717581095940,0.00086,70901.0,70900.0,1.45872293]
[1717581096549,0.00086,70901.0,70900.0,1.57021849]
[1717581098316,0.00086,70901.0,70900.0,1.46472293]
[1717581100063,0.23656,70901.0,70900.0,1.57020934]
[1717581100480,0.24775043,70901.0,70900.0,1.57020934]
[1717581100687,0.24775043,70901.0,70900.0,1.28812234]
[1717581103890,0.23656,70901.0,70900.0,1.28812234]
[1717581104091,0.24657944,70901.0,70900.0,1.28812234]
[1717581104480,0.24657944,70901.0,70900.0,1.28212234]
[1717581104708,0.24657944,70901.0,70900.0,1.27812234]
[1717581104950,0.24657944,70901.0,70900.0,1.28412234]
[1717581105165,0.24657944,70901.0,70900.0,1.28812234]
[1717581106090,0.45726551,70901.0,70900.0,1.28812234]
[1717581106334,0.45726551,70901.0,70900.0,0.55613]
[1717581106553,0.55536015,70901.0,70900.0,0.151043]
[1717581107008,0.55536015,70901.0,70900.0,0.16162071]
[1717581107232,0.54534071,70901.0,70900.0,0.16162071]
[1717581107664,0.54534071,70901.0,70900.0,0.15562071]
[1717581107841,0.55534728,70901.0,70900.0,0.15762071]
[1717581108059,0.55534728,70901.0,70900.0,0.16162071]
[1717581108301,0.55534728,70901.0,70900.0,0.26162071]
[1717581108506,0.55534728,70901.0,70900.0,0.54370771]
[1717581108730,0.55534728,70901.0,70900.0,0.53970771]
[1717581108925,0.55534728,70901.0,70900.0,0.53313]
[1717581111726,0.22068607,70897.0,70896.0,0.02637261]
[1717581111938,0.19809464,70898.0,70889.0,0.06329231]
[1717581111939,0.30878071,70890.0,70889.0,0.06329231]
[1717581112133,0.45388607,70889.0,70888.0,0.06329954]
[1717581112339,0.46388607,70889.0,70888.0,0.01432029]
[1717581112555,0.57408277,70889.0,70888.0,0.01432029]
[1717581112756,0.71514777,70889.0,70888.0,0.01432029]
[1717581114056,0.71514777,70889.0,70888.0,0.02032029]
[1717581114272,0.71514777,70889.0,70888.0,0.01432029]
[1717581114684,0.71514777,70889.0,70888.0,0.01932029]
[1717581115031,0.71514777,70889.0,70888.0,0.02132029]
[1717581115590,0.32068607,70887.0,70886.0,0.00086]
[1717581115790,0.32068607,70887.0,70869.0,0.01058201]
[1717581115791,0.21068607,70870.0,70869.0,0.01058201]
[1717581115993,0.21068607,70868.0,70866.0,0.15169201]
[1717581116185,0.07222824,70867.0,70866.0,0.15543029]
[1717581116427,0.09288523,70867.0,70866.0,0.15543029]
[1717581116568,0.29288523,70867.0,70866.0,0.15543029]
[1717581116989,0.29288523,70867.0,70866.0,0.25543029]
[1717581117368,0.08219916,70867.0,70866.0,0.27843029]
[1717581117574,0.29288523,70867.0,70866.0,0.27843029]
[1717581117775,0.00997092,70867.0,70866.0,0.28343029]
[1717581118033,0.55518071,70871.0,70868.0,0.141106]
[1717581118201,0.01068607,70870.0,70869.0,0.241104]
[1717581118395,0.21068607,70870.0,70869.0,0.241104]
[1717581118712,0.09809464,70871.0,70870.0,0.141103]
[1717581119060,0.10878071,70871.0,70870.0,0.264103]
[1717581119617,0.38100895,70871.0,70870.0,0.241103]
[1717581120162,0.38100895,70871.0,70870.0,0.246103]
[1717581120514,0.38100895,70871.0,70870.0,0.241103]
[1717581120902,0.38100895,70871.0,70870.0,0.246103]
[1717581121097,0.17032288,70871.0,70870.0,0.249103]
[1717581121559,0.38100895,70871.0,70870.0,0.249103]
[1717581121786,0.38100895,70871.0,70870.0,0.246103]
[1717581122122,0.38100895,70871.0,70870.0,0.249103]
[1717581122789,0.17032288,70871.0,70870.0,0.249103]
[1717581122992,0.38100895,70871.0,70870.0,0.249103]
[1717581123851,0.38100895,70871.0,70870.0,0.67572793]
[1717581123852,0.09809464,70871.0,70870.0,0.67572793]
[1717581124056,0.09809464,70871.0,70870.0,0.85842793]
[1717581124812,0.03568523,70879.0,70878.0,0.141087]
[1717581124813,0.13377987,70879.0,70878.0,0.141087]
[1717581125038,0.13377987,70879.0,70878.0,0.241087]
[1717581125246,0.14373797,70879.0,70878.0,0.241087]
[1717581126022,0.14373797,70879.0,70878.0,0.244087]
[1717581126299,0.14373797,70879.0,70878.0,0.249087]
[1717581127014,0.14373797,70879.0,70878.0,0.244087]
[1717581127221,0.14373797,70879.0,70878.0,0.249087]
[1717581127423,0.14373797,70879.0,70878.0,0.246087]
[1717581128832,0.14373797,70879.0,70878.0,0.241087]
[1717581129618,0.04564333,70879.0,70878.0,0.95285593]
[1717581129778,0.04564333,70879.0,70878.0,1.13255593]
[1717581130105,0.03568523,70879.0,70878.0,1.13255593]
[1717581130341,0.03568523,70879.0,70878.0,0.85538093]
[1717581130556,0.03568523,70879.0,70878.0,0.69868093]
[1717581130919,0.03568523,70879.0,70878.0,0.70068093]
[1717581131110,0.04575211,70879.0,70878.0,0.70068093]
[1717581131319,0.04575211,70879.0,70878.0,0.70368093]
[1717581131729,0.04575211,70879.0,70878.0,0.98285593]
[1717581131951,0.03568523,70879.0,70878.0,0.98285593]
[1717581132467,0.03568523,70879.0,70878.0,0.70068093]
[1717581132673,0.03568523,70879.0,70878.0,0.70368093]
[1717581132869,0.04576376,70879.0,70878.0,0.98585593]
[1717581133075,0.03568523,70879.0,70878.0,0.98585593]
[1717581133251,0.21068607,70885.0,70884.0,0.141075]
[1717581133252,0.2463713,70885.0,70884.0,0.141075]
[1717581133449,0.03568523,70885.0,70884.0,0.264075]
[1717581134907,0.03568523,70885.0,70884.0,0.269075]
[1717581135318,0.03568523,70885.0,70884.0,0.272075]
[1717581135727,0.03568523,70885.0,70884.0,0.269075]
[1717581136562,0.03568523,70885.0,70884.0,0.264075]
[1717581137277,0.03568523,70885.0,70884.0,0.272075]
[1717581137492,0.03568523,70885.0,70884.0,0.554226]
[1717581138872,0.03568523,70885.0,70884.0,0.98079593]
[1717581139111,0.17032288,70888.0,70887.0,0.423208]
[1717581139112,0.07222824,70888.0,70887.0,0.423208]
[1717581139254,0.07222824,70888.0,70887.0,0.69062693]
[1717581139456,0.07222824,70888.0,70887.0,0.70494722]
[1717581139897,0.07222824,70888.0,70887.0,0.98708622]
[1717581141212,0.07222824,70888.0,70887.0,0.99008622]
[1717581141417,0.07222824,70888.0,70887.0,0.99508622]
[1717581143679,0.17032288,70888.0,70887.0,0.99508622]
[1717581143828,0.17032288,70888.0,70887.0,0.54552829]
[1717581144055,0.62990895,70888.0,70887.0,0.54552829]
[1717581144442,0.62990895,70888.0,70887.0,0.531208]
[1717581145233,0.62990895,70888.0,70887.0,0.249069]
[1717581145691,0.64072881,70888.0,70887.0,0.249069]
[1717581146151,0.70762881,70888.0,70887.0,0.249069]
[1717581146604,0.81762881,70888.0,70887.0,0.249069]
[1717581146795,0.81762881,70888.0,70887.0,0.108]
[1717581146796,0.80762881,70888.0,70887.0,0.108]
[1717581147007,0.81762881,70888.0,70887.0,0.005]
[1717581147205,0.21068607,70886.0,70885.0,0.1]
[1717581147439,0.21068607,70886.0,70885.0,0.11432029]
[1717581147440,0.45958607,70886.0,70885.0,0.11432029]
[1717581147759,0.47040593,70886.0,70885.0,0.25539329]
[1717581148820,0.47040593,70886.0,70885.0,0.241073]
[1717581149034,0.47040593,70886.0,70885.0,0.246073]
[1717581149235,0.47040593,70886.0,70885.0,0.105]
[1717581149455,0.47040593,70886.0,70885.0,0.005]
[1717581150308,0.47040593,70886.0,70885.0,0.146073]
[1717581150525,0.47040593,70886.0,70885.0,0.246073]
[1717581153584,0.53730593,70886.0,70885.0,0.249073]
[1717581154204,0.25971986,70886.0,70885.0,0.249073]
[1717581154409,0.25971986,70886.0,70885.0,0.53122]
[1717581154410,0.01081986,70886.0,70885.0,0.53122]
[1717581154615,0.01081986,70886.0,70885.0,0.55422]
[1717581154813,0.17032288,70888.0,70887.0,0.141069]
[1717581155035,0.17032288,70888.0,70887.0,0.241069]
[1717581155999,0.17032288,70888.0,70887.0,0.25538929]
[1717581156160,0.17032288,70888.0,70887.0,0.25838929]
[1717581156972,0.17032288,70888.0,70887.0,0.26338929]
[1717581158224,0.38100895,70888.0,70887.0,0.26338929]
[1717581158686,0.61490895,70888.0,70887.0,0.26338929]
[1717581159094,0.61585495,70888.0,70887.0,0.26338929]
[1717581160114,0.61585495,70888.0,70887.0,0.249069]
[1717581163327,0.62585495,70888.0,70887.0,0.108]
[1717581163549,0.62585495,70888.0,70887.0,0.008]
[1717581163771,0.62585495,70888.0,70887.0,0.108]
[1717581164915,0.62585495,70888.0,70887.0,0.008]
[1717581166078,0.09904064,70888.0,70887.0,0.149069]
[1717581166282,0.000946,70888.0,70887.0,0.249069]
[1717581167042,0.000946,70888.0,70887.0,0.57342633]
[1717581167244,0.000946,70888.0,70887.0,0.77372693]
[1717581167371,0.000946,70888.0,70887.0,1.12276593]
[1717581167777,0.000946,70888.0,70887.0,1.22831616]
[1717581167977,0.000946,70888.0,70887.0,1.16141616]
[1717581168379,0.000946,70888.0,70887.0,1.16141396]
[1717581168824,0.000946,70888.0,70887.0,1.14030681]
[1717581169177,0.000946,70888.0,70887.0,1.05586593]
[1717581169606,0.000946,70888.0,70887.0,1.04786593]
[1717581170000,0.000946,70888.0,70887.0,1.1323102]
[1717581170383,0.000946,70888.0,70887.0,1.05086593]
[1717581171160,0.000946,70888.0,70887.0,1.05486593]
[1717581171490,0.000946,70888.0,70887.0,1.07148039]
[1717581171821,0.000946,70888.0,70887.0,1.17703572]
[1717581172348,0.000946,70888.0,70887.0,1.07148039]
[1717581173167,0.000946,70888.0,70887.0,1.17703572]
[1717581173596,0.000946,70888.0,70887.0,1.07148039]
[1717581174104,0.000946,70888.0,70887.0,1.17703572]
[1717581174340,0.000946,70888.0,70887.0,1.07148039]
[1717581175203,0.000946,70888.0,70887.0,1.15590518]
[1717581175722,0.000946,70888.0,70887.0,1.07148039]
[1717581176484,0.000946,70888.0,70887.0,1.07049799]
[1717581181125,0.000946,70888.0,70887.0,1.17601306]
[1717581181636,0.000946,70888.0,70887.0,1.07049799]
[1717581181763,0.000946,70888.0,70887.0,1.17601306]
[1717581182171,0.000946,70888.0,70887.0,1.07049799]
[1717581182758,0.000946,70888.0,70887.0,1.17601306]
[1717581183785,0.000946,70888.0,70887.0,1.07049799]
[1717581184799,0.000946,70888.0,70887.0,0.99539799]
[1717581185198,0.000946,70888.0,70887.0,1.10086449]
[1717581185545,0.000946,70888.0,70887.0,1.07977229]
[1717581186195,0.000946,70888.0,70887.0,0.99539799]
[1717581186399,0.000946,70888.0,70887.0,1.07977229]
[1717581187195,0.000946,70888.0,70887.0,0.99539799]
[1717581187408,0.000946,70888.0,70887.0,1.07977229]
[1717581188207,0.44573207,70888.0,70887.0,0.63021436]
[1717581188407,0.44573207,70888.0,70887.0,0.54584006]
[1717581188613,0.45482944,70888.0,70887.0,0.54584006]
[1717581188947,0.45482944,70888.0,70887.0,0.17428097]
[1717581189107,0.45482944,70888.0,70887.0,0.15766651]
[1717581189286,0.56482944,70888.0,70887.0,0.15766651]
[1717581189493,0.56482944,70888.0,70887.0,0.1470866]
[1717581189698,0.55482944,70888.0,70887.0,0.1440866]
[1717581189910,0.62172944,70888.0,70887.0,0.1470866]
[1717581190495,0.63172944,70888.0,70887.0,0.1470866]
[1717581190923,0.63172944,70888.0,70887.0,0.2470866]
[1717581191134,0.63172944,70888.0,70887.0,0.2440866]
[1717581191635,0.63172944,70888.0,70887.0,0.2400866]
[1717581192095,0.62172944,70888.0,70887.0,0.2400866]
[1717581192935,0.62172944,70888.0,70887.0,0.2430866]
[1717581193378,0.62172944,70888.0,70887.0,0.2480866]
[1717581194623,0.62172944,70888.0,70887.0,0.2430866]
[1717581195169,0.45482944,70888.0,70887.0,0.2489466]
[1717581195342,0.42172944,70888.0,70887.0,0.2489466]
[1717581195669,0.55482944,70888.0,70887.0,0.2489466]
[1717581197650,0.55482944,70888.0,70887.0,0.2489466]
[1717581199192,0.62172944,70888.0,70887.0,0.2489466]
[1717581200265,0.52172944,70888.0,70887.0,0.2489466]
[1717581200457,0.62172944,70888.0,70887.0,0.2489466]
[1717581200823,0.52172944,70888.0,70887.0,0.2489466]
[1717581201022,0.62172944,70888.0,70887.0,0.2489466]
[1717581201230,0.52172944,70888.0,70887.0,0.2489466]
[1717581201694,0.62172944,70888.0,70887.0,0.2489466]
[1717581201905,0.52172944,70888.0,70887.0,0.2489466]
[1717581202082,0.62172944,70888.0,70887.0,0.2489466]
[1717581202506,0.01004337,70888.0,70887.0,0.5310856]
[1717581202633,0.01004337,70888.0,70887.0,0.56466551]
[1717581202838,0.01004337,70888.0,70887.0,0.5540856]
[1717581203258,0.01004337,70888.0,70887.0,0.6173834]
[1717581203469,0.01004337,70888.0,70887.0,0.5540856]
[1717581203621,0.000946,70888.0,70887.0,0.6173834]
[1717581204342,0.000946,70888.0,70887.0,0.8995224]
[1717581204782,0.01034983,70888.0,70887.0,0.8362246]
[1717581204992,0.000946,70888.0,70887.0,0.8362246]
[1717581205566,0.000946,70888.0,70887.0,0.8995224]
[1717581205767,0.01038238,70888.0,70887.0,0.87842375]
[1717581206445,0.01038238,70888.0,70887.0,0.9120246]
[1717581206906,0.01038238,70888.0,70887.0,0.95422375]
[1717581207162,0.01038238,70888.0,70887.0,0.9120246]
[1717581207385,0.01038238,70888.0,70887.0,0.95422696]
[1717581208319,0.01038238,70888.0,70887.0,0.67208796]
[1717581208521,0.01038238,70888.0,70887.0,0.59628796]
[1717581208743,0.22106845,70888.0,70887.0,0.59628796]
[1717581209302,0.22106845,70888.0,70887.0,0.5540856]
[1717581209502,0.01038238,70888.0,70887.0,0.5540856]
[1717581209648,0.08261062,70888.0,70887.0,0.5540856]
[1717581210166,0.29329669,70888.0,70887.0,0.5540856]
[1717581210768,0.08261062,70888.0,70887.0,0.5540856]
[1717581212185,0.08261062,70888.0,70887.0,0.59630524]
[1717581214212,0.29329669,70888.0,70887.0,0.59630524]
[1717581214410,0.08261062,70888.0,70887.0,0.59630524]
[1717581218945,0.08261062,70888.0,70887.0,0.62201319]
[1717581220052,0.08261062,70888.0,70887.0,0.6220221]
[1717581220267,0.08261062,70888.0,70887.0,0.57979355]
[1717581223266,0.08261062,70888.0,70887.0,0.62202537]
[1717581223838,0.08261062,70888.0,70887.0,0.31688637]
[1717581223839,0.39139133,70888.0,70887.0,0.31688637]
[1717581224036,0.62059133,70888.0,70887.0,0.31688637]
[1717581224306,0.68749133,70888.0,70887.0,0.2489466]
[1717581226543,0.68749133,70888.0,70887.0,0.32207513]
[1717581229026,0.69749133,70888.0,70887.0,0.32207513]
[1717581229601,0.69749133,70888.0,70887.0,0.32058266]
[1717581230572,0.69749133,70888.0,70887.0,0.18198853]
[1717581230704,0.69749133,70888.0,70887.0,0.08198853]
[1717581231343,0.69749133,70888.0,70887.0,0.08199588]
[1717581232205,0.69749133,70888.0,70887.0,0.07899588]
[1717581232411,0.69749133,70888.0,70887.0,0.07399588]
[1717581232705,0.69749133,70888.0,70887.0,0.07899588]
[1717581233681,0.69749133,70888.0,70887.0,0.08199588]
[1717581236928,0.63059133,70888.0,70887.0,0.08199588]
[1717581237081,0.69749133,70888.0,70887.0,0.08199588]
[1717581237400,0.89749133,70888.0,70887.0,0.08199588]
[1717581239392,0.89749133,70888.0,70887.0,0.07699588]
[1717581239766,0.89749133,70888.0,70887.0,0.08199588]
[1717581239982,0.89749133,70888.0,70887.0,0.07899588]
[1717581240187,0.89749133,70888.0,70887.0,0.08199588]
[1717581242711,1.04191026,70888.0,70887.0,0.08199588]
[1717581246336,0.97501026,70888.0,70887.0,0.08199588]
[1717581246541,1.04191026,70888.0,70887.0,0.08199588]
[1717581252012,1.18297726,70888.0,70887.0,0.08199588]
[1717581252590,1.18297726,70888.0,70887.0,0.07699588]
[1717581252832,1.18297726,70888.0,70887.0,0.07899588]
[1717581253191,1.18297726,70888.0,70887.0,0.08199588]
[1717581254292,1.18297726,70888.0,70887.0,0.08199588]
[1717581255680,1.18297726,70888.0,70887.0,0.07699588]
[1717581255857,1.18297726,70888.0,70887.0,0.07399588]
[1717581256054,1.18297726,70888.0,70887.0,0.07799588]
[1717581256261,1.18297726,70888.0,70887.0,0.07999588]
[1717581257821,1.38297726,70888.0,70887.0,0.07999588]
[1717581258016,1.53127726,70888.0,70887.0,0.07999588]
[1717581258731,0.76175707,70886.0,70885.0,0.00086]
[1717581258955,1.293076,70886.0,70885.0,0.01518029]
[1717581259158,1.30229232,70886.0,70885.0,0.01518029]
[1717581259318,1.38443532,70886.0,70885.0,0.01518029]
[1717581259521,1.45133532,70886.0,70885.0,0.01518029]
[1717581259721,1.65133532,70886.0,70885.0,0.01518029]
[1717581260382,1.45133532,70886.0,70885.0,0.01518029]
[1717581260571,1.45533532,70886.0,70885.0,0.01518029]
[1717581260752,1.45733532,70886.0,70885.0,0.01618029]
[1717581261521,1.65733532,70886.0,70885.0,0.01618029]
[1717581262063,1.45733532,70886.0,70885.0,0.01618029]
[1717581262273,1.65733532,70886.0,70885.0,0.01618029]
[1717581262777,0.30878071,70869.0,70868.0,0.1]
[1717581263098,0.21068607,70868.0,70867.0,0.1]
[1717581263300,0.21068607,70868.0,70867.0,0.01432029]
[1717581263700,0.21981762,70868.0,70867.0,0.01432029]
[1717581264465,0.21981762,70868.0,70867.0,0.25832029]
[1717581264573,0.21981762,70868.0,70867.0,0.35832029]
[1717581265437,0.22981762,70868.0,70867.0,0.35832029]
[1717581265622,0.21981762,70868.0,70867.0,0.35832029]
[1717581266100,0.21981762,70868.0,70867.0,0.36632029]
[1717581267289,0.21981762,70868.0,70867.0,0.12232029]
[1717581267483,0.32981762,70868.0,70867.0,0.02232029]
[1717581267692,0.57423655,70868.0,70867.0,0.02232029]
[1717581268362,0.71534355,70868.0,70867.0,0.008]
[1717581268568,0.94394355,70868.0,70867.0,0.008]
[1717581268778,0.94394355,70868.0,70867.0,0.003]
[1717581268984,0.22068607,70863.0,70862.0,0.01681194]
[1717581269168,0.38758607,70863.0,70862.0,0.03113223]
[1717581269354,0.38758607,70863.0,70862.0,0.01432029]
[1717581269677,0.39662519,70863.0,70862.0,0.01432029]
[1717581270657,0.62522519,70863.0,70862.0,0.01432029]
[1717581270835,0.72522519,70863.0,70862.0,0.01432029]
[1717581271016,0.72522519,70863.0,70862.0,0.01732029]
[1717581272510,0.72522519,70863.0,70862.0,0.02232029]
[1717581274284,0.72522519,70863.0,70862.0,0.008]
[1717581275925,0.64832519,70863.0,70862.0,0.008]
[1717581276089,0.71522519,70863.0,70862.0,0.008]
[1717581276489,0.72522519,70863.0,70862.0,0.008]
[1717581278182,0.86964412,70863.0,70862.0,0.008]
[1717581278402,1.01076112,70863.0,70862.0,0.008]
[1717581279058,0.86964412,70863.0,70862.0,0.008]
[1717581280853,0.85964412,70863.0,70862.0,0.008]
[1717581281056,0.63104412,70863.0,70862.0,0.008]
[1717581281714,0.56414412,70863.0,70862.0,0.008]
[1717581281921,0.00903912,70863.0,70862.0,0.387919]
[1717581282119,0.10903912,70863.0,70862.0,0.487919]
[1717581282478,0.30903912,70863.0,70862.0,0.487919]
[1717581282888,0.10903912,70863.0,70862.0,0.487919]
[1717581283088,0.00903912,70863.0,70862.0,0.484919]
[1717581283296,0.00903912,70863.0,70862.0,0.482919]
[1717581283493,0.10903912,70863.0,70862.0,0.482919]
[1717581283692,0.00903912,70863.0,70862.0,0.487919]
[1717581283955,0.10903912,70863.0,70862.0,0.487919]
[1717581284095,0.00903912,70863.0,70862.0,0.487919]
[1717581285249,0.1,70863.0,70862.0,0.487919]
[1717581285455,0.10889509,70863.0,70862.0,0.487919]
[1717581286971,0.00889509,70863.0,70862.0,0.487919]
[1717581287202,0.10889509,70863.0,70862.0,0.487919]
[1717581287387,0.1,70863.0,70862.0,0.487919]
[1717581287680,0.10889919,70863.0,70862.0,0.487919]
[1717581290691,0.00889919,70863.0,70862.0,0.770157]
[1717581290894,0.00889919,70863.0,70862.0,0.487919]
[1717581291090,0.0669,70866.0,70865.0,0.141113]
[1717581291419,0.0669,70866.0,70865.0,0.25543329]
[1717581292301,0.1669,70866.0,70865.0,0.26243329]
[1717581292744,0.0669,70866.0,70865.0,0.26243329]
[1717581293087,0.0669,70866.0,70865.0,0.25943329]
[1717581293254,0.0669,70866.0,70865.0,0.26601686]
[1717581293431,0.1669,70866.0,70865.0,0.26601686]
[1717581293758,0.0669,70866.0,70865.0,0.26601686]
[1717581293958,0.1669,70866.0,70865.0,0.26601686]
[1717581294117,0.1669,70866.0,70865.0,0.27001686]
[1717581294334,0.1,70866.0,70865.0,0.25943329]
[1717581294534,0.1,70866.0,70865.0,0.26243329]
[1717581295507,0.2,70867.0,70866.0,0.141111]
[1717581295508,0.3,70867.0,70866.0,0.141111]
[1717581295688,0.3,70867.0,70866.0,0.25169456]
[1717581296715,0.3,70867.0,70866.0,0.25569456]
[1717581297275,0.1,70867.0,70866.0,0.25569456]
[1717581297680,0.3,70867.0,70866.0,0.25569456]
[1717581298291,0.1,70867.0,70866.0,0.25869456]
[1717581298475,0.2,70867.0,70866.0,0.25869456]
[1717581298892,0.3,70867.0,70866.0,0.248111]
[1717581299297,0.2,70867.0,70866.0,0.248111]
[1717581299524,0.23912824,70868.0,70867.0,0.141109]
[1717581299731,0.43912824,70868.0,70867.0,0.15169254]
[1717581300463,0.44981431,70868.0,70867.0,0.15169256]
[1717581300851,0.44981431,70868.0,70867.0,0.15569256]
[1717581301595,0.44981431,70868.0,70867.0,0.15869256]
[1717581303127,0.17032288,70868.0,70867.0,0.17301285]
[1717581303340,0.23722288,70868.0,70867.0,0.17301285]
[1717581303769,0.53722288,70868.0,70867.0,0.17301285]
[1717581303991,0.54790895,70868.0,70867.0,0.17301285]
[1717581304132,0.55467023,70868.0,70867.0,0.17301285]
[1717581304549,0.27708416,70868.0,70867.0,0.17301285]
[1717581304761,0.34398416,70868.0,70867.0,0.15869256]
[1717581305103,0.34398416,70868.0,70867.0,0.148109]
[1717581307637,0.54398416,70868.0,70867.0,0.148109]
[1717581308618,0.34398416,70868.0,70867.0,0.148109]
[1717581308791,0.54398416,70868.0,70867.0,0.148109]
[1717581309384,0.34398416,70868.0,70867.0,0.148109]
[1717581309588,0.54398416,70868.0,70867.0,0.148109]
[1717581310371,0.34398416,70868.0,70867.0,0.148109]
[1717581311352,0.55467023,70868.0,70867.0,0.148109]
[1717581313056,0.70887023,70868.0,70867.0,0.148109]
[1717581316610,0.49818416,70868.0,70867.0,0.148109]
[1717581316785,0.70887023,70868.0,70867.0,0.148109]
[1717581319177,0.49818416,70868.0,70867.0,0.148109]
[1717581320129,0.69818416,70868.0,70867.0,0.148109]
[1717581320913,0.70887023,70868.0,70867.0,0.148109]
[1717581327557,0.69818416,70868.0,70867.0,0.148109]
[1717581327717,0.34398416,70868.0,70867.0,0.148109]
[1717581327898,0.55467023,70868.0,70867.0,0.148109]
[1717581328240,0.34398416,70868.0,70867.0,0.19037987]
[1717581328409,0.34398416,70868.0,70867.0,0.148109]
[1717581328804,0.55467023,70868.0,70867.0,0.148109]
[1717581329968,0.55467023,70868.0,70867.0,0.19042234]
[1717581330430,0.55467023,70868.0,70867.0,0.148109]
[1717581330603,0.55467023,70868.0,70867.0,0.19042431]
[1717581331010,0.55467023,70868.0,70867.0,0.19042432]
[1717581331679,0.55467023,70868.0,70867.0,0.19128432]
[1717581333429,0.55467023,70868.0,70867.0,0.148969]
[1717581333917,0.55467023,70868.0,70867.0,0.19128724]
[1717581335934,0.65467023,70868.0,70867.0,0.19128724]
[1717581336124,0.81897023,70868.0,70867.0,0.148969]